bitfinex-derivatives/quotes_BTCF0:USTF0_20250620
["timestamp","ask_amount","ask_price","bid_price","bid_amount"]
[1750444497044,0.74771425,103340.0,103330.0,0.2254408]
[1750444497554,0.75765171,103340.0,103330.0,0.2254408]
[1750444499757,0.74771425,103340.0,103330.0,0.2254408]
[1750444500158,0.30845574,103340.0,103330.0,0.2254408]
[1750444500354,0.74771425,103340.0,103330.0,0.2254408]
[1750444500857,0.30845574,103340.0,103330.0,0.2254408]
[1750444501050,0.74771425,103340.0,103330.0,0.2254408]
[1750444501758,1.74623425,103340.0,103330.0,0.0004]
[1750444502059,1.98134296,103340.0,103330.0,0.0004]
[1750444502261,0.1935595,103320.0,103310.0,0.94977021]
[1750444502556,1.29129175,103320.0,103310.0,0.95057021]
[1750444502762,1.29129175,103320.0,103310.0,0.94977021]
[1750444503055,1.29129175,103320.0,103310.0,1.38942872]
[1750444503056,0.1935595,103320.0,103310.0,1.38942872]
[1750444503451,0.1935595,103320.0,103310.0,1.41942872]
[1750444503652,0.1935595,103320.0,103310.0,0.98017021]
[1750444503861,0.1935595,103320.0,103310.0,1.41942872]
[1750444505359,0.1935595,103320.0,103310.0,0.93177581]
[1750444507258,0.1935595,103320.0,103310.0,1.56929581]
[1750444507563,0.1935595,103320.0,103310.0,2.00855432]
[1750444511763,0.1935595,103320.0,103310.0,1.56929581]
[1750444512264,0.1935595,103320.0,103310.0,2.00855432]
[1750444513465,0.43232599,103330.0,103320.0,0.1935597]
[1750444513663,0.38995973,103330.0,103320.0,0.6168597]
[1750444513868,0.82921824,103330.0,103320.0,0.6168597]
[1750444514668,0.83021824,103330.0,103320.0,0.6168597]
[1750444515265,0.83021824,103330.0,103320.0,0.2248597]
[1750444515467,0.1935599,103320.0,103310.0,1.99474622]
[1750444515667,0.1935599,103320.0,103310.0,1.68678771]
[1750444515967,0.65365215,103320.0,103310.0,0.79038171]
[1750444516167,0.27659364,103320.0,103310.0,0.34990661]
[1750444516368,1.38339215,103320.0,103310.0,0.15632791]
[1750444516771,1.38339215,103320.0,103310.0,0.15592791]
[1750444517065,2.18345066,103320.0,103310.0,0.00136791]
[1750444517265,2.18345066,103320.0,103310.0,0.00196791]
[1750444517570,2.18345066,103320.0,103310.0,0.00236791]
[1750444517970,2.4823128,103320.0,103310.0,0.00236791]
[1750444518167,1.66177605,103320.0,103310.0,0.00196791]
[1750444518369,2.4823128,103320.0,103310.0,0.00236791]
[1750444519063,1.74515215,103320.0,103310.0,0.00236791]
[1750444519264,1.74615215,103320.0,103310.0,0.00136791]
[1750444520170,1.80413242,103320.0,103310.0,0.00136791]
[1750444520674,1.16713242,103320.0,103310.0,0.19494661]
[1750444520873,1.38531215,103320.0,103310.0,0.19494661]
[1750444521069,1.38531215,103320.0,103310.0,0.29104661]
[1750444523369,0.74835215,103320.0,103310.0,0.65184661]
[1750444523568,0.1955599,103320.0,103310.0,1.2838552]
[1750444523767,0.002,103320.0,103310.0,1.9205752]
[1750444524874,0.002,103320.0,103310.0,1.9005752]
[1750444525075,0.002,103320.0,103310.0,2.0805752]
[1750444525377,0.1955599,103320.0,103310.0,2.0805752]
[1750444526478,0.002,103320.0,103310.0,2.0805752]
[1750444527381,0.1955599,103320.0,103310.0,2.0805752]
[1750444534586,0.002,103320.0,103310.0,2.0805752]
[1750444534884,0.1955599,103320.0,103310.0,2.0805752]
[1750444536185,0.002,103320.0,103310.0,2.0805752]
[1750444536380,0.0016,103320.0,103310.0,2.0805752]
[1750444536688,0.0016,103320.0,103310.0,2.25936547]
[1750444537074,0.0016,103320.0,103310.0,1.82010696]
[1750444537273,0.0016,103320.0,103310.0,2.25936547]
[1750444538287,0.001,103320.0,103310.0,1.82010696]
[1750444538587,0.001,103320.0,103310.0,2.25936547]
[1750444538887,0.2903152,103330.0,103320.0,0.1935599]
[1750444539185,0.26276204,103330.0,103320.0,1.01361841]
[1750444539386,0.26276204,103330.0,103320.0,1.07591841]
[1750444540286,0.26376204,103330.0,103320.0,1.07591841]
[1750444541287,0.2429283,103330.0,103320.0,1.07591841]
[1750444541485,0.26376204,103330.0,103320.0,1.07591841]
[1750444543789,0.02183374,103330.0,103320.0,1.07591841]
[1750444545688,0.86349986,103340.0,103330.0,0.1935412]
[1750444545896,0.37585615,103340.0,103330.0,1.26963971]
[1750444546189,0.08555525,103340.0,103330.0,1.78583971]
[1750444546489,0.08948027,103350.0,103340.0,0.1935225]
[1750444546684,0.28298397,103350.0,103340.0,1.05738101]
[1750444547087,0.05798027,103360.0,103340.0,0.86385851]
[1750444547393,0.05798027,103360.0,103350.0,1.3503437]
[1750444547394,0.25146527,103360.0,103350.0,1.3503437]
[1750444547692,0.69072378,103360.0,103350.0,1.3503437]
[1750444547887,0.69072378,103360.0,103350.0,0.9895437]
[1750444548991,0.55843878,103360.0,103350.0,1.3526237]
[1750444549191,0.55843878,103360.0,103350.0,1.3827237]
[1750444549192,0.12118027,103360.0,103350.0,1.3827237]
[1750444549496,0.09018027,103360.0,103350.0,1.3827237]
[1750444549686,0.002,103360.0,103350.0,1.93156751]
[1750444549890,0.002,103360.0,103350.0,1.96246751]
[1750444550991,0.0332,103360.0,103350.0,1.96246751]
[1750444552295,0.002,103360.0,103350.0,1.96246751]
[1750444552892,0.002,103360.0,103350.0,2.3881599]
[1750444553199,0.002,103360.0,103350.0,2.4187599]
[1750444553602,0.002,103360.0,103350.0,2.4287599]
[1750444554304,0.002,103360.0,103350.0,1.98950139]
[1750444554498,0.1934674,103370.0,103360.0,0.193485]
[1750444554701,0.1934674,103370.0,103360.0,1.05634351]
[1750444554898,0.3368176,103380.0,103370.0,0.1934663]
[1750444555095,0.3368176,103380.0,103370.0,1.3862263]
[1750444556404,0.2596535,103380.0,103370.0,1.82548481]
[1750444556592,0.2596535,103380.0,103370.0,1.85608481]
[1750444557599,0.2914535,103380.0,103370.0,1.3862263]
[1750444558499,0.2914535,103380.0,103370.0,1.3552263]
[1750444558698,0.2914535,103380.0,103370.0,1.79448481]
[1750444558899,0.2914535,103380.0,103370.0,1.82538481]
[1750444559406,0.2596535,103380.0,103370.0,1.82538481]
[1750444559601,0.2596535,103380.0,103370.0,1.85738481]
[1750444560507,0.2596476,103380.0,103370.0,1.85738481]
[1750444560707,0.2596476,103380.0,103370.0,1.88768481]
[1750444561302,0.0662,103380.0,103370.0,1.88768481]
[1750444561503,0.2596476,103380.0,103370.0,1.88768481]
[1750444563012,0.1954476,103380.0,103370.0,1.88768481]
[1750444563403,0.002,103380.0,103370.0,1.88768481]
[1750444563602,0.1954476,103380.0,103370.0,1.88768481]
[1750444564801,0.1954476,103380.0,103370.0,1.4484263]
[1750444565002,0.66780611,103380.0,103370.0,1.4181263]
[1750444565213,0.69940611,103380.0,103370.0,0.9944263]
[1750444565712,0.1934663,103370.0,103360.0,1.4015617]
[1750444565906,0.72832481,103370.0,103360.0,0.7587617]
[1750444566107,0.2890663,103370.0,103360.0,0.7587617]
[1750444566404,0.72832481,103370.0,103360.0,0.7583617]
[1750444566714,0.193485,103360.0,103350.0,0.36615538]
[1750444567013,0.69744351,103360.0,103350.0,0.36695538]
[1750444567410,1.05824351,103360.0,103350.0,0.36695538]
[1750444567614,0.618985,103360.0,103350.0,0.36695538]
[1750444568718,0.618985,103360.0,103350.0,0.3488238]
[1750444568719,1.05824351,103360.0,103350.0,0.3488238]
[1750444568916,1.05824351,103360.0,103350.0,0.15532]
[1750444569119,1.70016351,103360.0,103350.0,0.15532]
[1750444569424,1.76014378,103360.0,103350.0,0.15532]
[1750444569624,1.76014378,103360.0,103350.0,0.15572]
[1750444569823,1.76014378,103360.0,103350.0,0.3488237]
[1750444570123,1.70216351,103360.0,103350.0,0.3492237]
[1750444570319,1.262905,103360.0,103350.0,0.3492237]
[1750444570517,1.262905,103360.0,103350.0,0.36707162]
[1750444570823,0.870545,103360.0,103350.0,1.16713013]
[1750444571016,0.870545,103360.0,103350.0,1.22903013]
[1750444571422,0.195485,103360.0,103350.0,1.22903013]
[1750444571623,0.193485,103360.0,103350.0,1.26223013]
[1750444572631,0.85107057,103370.0,103360.0,0.193485]
[1750444572923,0.85107057,103370.0,103360.0,0.224385]
[1750444573830,0.44189997,103370.0,103360.0,0.224385]
[1750444574031,0.0629,103370.0,103360.0,0.66364351]
[1750444574325,0.1934663,103370.0,103360.0,1.33844351]
[1750444574829,0.85103677,103380.0,103370.0,0.1934663]
[1750444575015,0.67504327,103380.0,103370.0,0.1934663]
[1750444575218,0.28324327,103380.0,103370.0,0.1934663]
[1750444575415,0.28324327,103380.0,103370.0,0.2551663]
[1750444576030,0.28324327,103380.0,103370.0,0.2561663]
[1750444576530,0.28524327,103380.0,103370.0,0.2551663]
[1750444577530,0.28524327,103380.0,103370.0,0.6159663]
[1750444579129,0.28524327,103380.0,103370.0,0.6488663]
[1750444579529,0.25344327,103380.0,103370.0,0.6488663]
[1750444579730,0.25344327,103380.0,103370.0,1.08812481]
[1750444580128,0.002,103380.0,103370.0,1.08812481]
[1750444580327,0.002,103380.0,103370.0,1.10595317]
[1750444580731,0.002,103380.0,103370.0,1.28595317]
[1750444583233,0.002,103380.0,103370.0,1.45595317]
[1750444585431,0.002,103380.0,103370.0,1.01669466]
[1750444585634,0.002,103380.0,103370.0,1.45595317]
[1750444586835,0.001,103400.0,103390.0,0.1934289]
[1750444587027,0.45650577,103420.0,103410.0,0.1933915]
[1750444587222,0.7201777,103420.0,103410.0,0.1933915]
[1750444587427,1.15943621,103420.0,103410.0,0.1933915]
[1750444587631,0.7201777,103420.0,103410.0,0.1933915]
[1750444587826,1.15943621,103420.0,103410.0,0.1933915]
[1750444588236,0.1933915,103410.0,103400.0,0.77971073]
[1750444588635,0.2544915,103410.0,103400.0,0.77971073]
[1750444588831,0.0611,103410.0,103400.0,0.78957215]
[1750444589032,0.2544915,103410.0,103400.0,0.78957215]
[1750444591037,0.0611,103410.0,103400.0,1.22883066]
[1750444591241,0.0611,103410.0,103400.0,0.79457215]
[1750444591436,0.2544914,103410.0,103400.0,0.79457215]
[1750444591934,0.0611,103410.0,103400.0,0.79157215]
[1750444592138,0.2544914,103410.0,103400.0,1.23583066]
[1750444592438,0.2544914,103410.0,103400.0,1.21806723]
[1750444592638,0.2544914,103410.0,103400.0,0.77880872]
[1750444592839,0.2544914,103410.0,103400.0,1.21806723]
[1750444593035,0.0611,103410.0,103400.0,1.21806723]
[1750444594330,0.1933914,103410.0,103400.0,1.21806793]
[1750444594530,0.1933914,103410.0,103400.0,1.16971633]
[1750444594838,0.2255914,103410.0,103400.0,1.72608341]
[1750444595040,0.2569914,103410.0,103400.0,1.2868249]
[1750444596443,0.69624991,103410.0,103400.0,1.2868249]
[1750444596937,1.05704991,103410.0,103400.0,0.007]
[1750444597138,0.1934289,103390.0,103380.0,1.5322578]
[1750444597342,0.1934289,103390.0,103380.0,0.8988978]
[1750444597535,0.2545289,103390.0,103380.0,0.8988978]
[1750444598637,0.69378741,103390.0,103380.0,0.554236]
[1750444598850,0.1934476,103380.0,103370.0,1.50929409]
[1750444599140,0.2253476,103380.0,103370.0,1.9485526]
[1750444599535,0.2253476,103380.0,103370.0,1.9493526]
[1750444599835,0.2253476,103380.0,103370.0,1.9485526]
[1750444600139,0.2253476,103380.0,103370.0,1.9489526]
[1750444600342,0.2253476,103380.0,103370.0,1.9499526]
[1750444600544,0.2273476,103380.0,103370.0,1.9499526]
[1750444601646,0.2273476,103380.0,103370.0,1.51069409]
[1750444601839,0.2273476,103380.0,103370.0,1.94049321]
[1750444602044,0.2273476,103380.0,103370.0,1.4691347]
[1750444602246,0.2594476,103380.0,103370.0,1.4375347]
[1750444602446,0.2594476,103380.0,103370.0,0.9184547]
[1750444602747,0.2594476,103380.0,103370.0,0.8848547]
[1750444602947,0.69870611,103380.0,103370.0,0.2432147]
[1750444603144,0.69870611,103380.0,103370.0,0.2428147]
[1750444603342,0.69870611,103380.0,103370.0,0.2432147]
[1750444603542,0.2594476,103380.0,103370.0,0.2432147]
[1750444603742,0.2594476,103380.0,103370.0,0.68247321]
[1750444603942,0.2594476,103380.0,103370.0,0.71247321]
[1750444604146,0.2594476,103380.0,103370.0,0.2732147]
[1750444604341,0.2594476,103380.0,103370.0,0.71247321]
[1750444607249,0.2594476,103380.0,103370.0,0.2732147]
[1750444608140,0.1954476,103380.0,103370.0,0.71247321]
[1750444608449,0.002,103380.0,103370.0,1.10407321]
[1750444609253,0.002,103380.0,103370.0,0.6648147]
[1750444609448,0.002,103380.0,103370.0,1.10407321]
[1750444610545,0.1954476,103380.0,103370.0,1.12127718]
[1750444613142,0.63470611,103380.0,103370.0,0.1944663]
[1750444613341,1.05670611,103380.0,103370.0,0.21230119]
[1750444613554,1.05670611,103380.0,103370.0,0.21270119]
[1750444613853,1.05670611,103380.0,103370.0,0.21230119]
[1750444614054,1.05670611,103380.0,103370.0,0.21270119]
[1750444614254,1.05670611,103380.0,103370.0,0.0014]
[1750444614651,1.05670611,103380.0,103370.0,0.001]
[1750444614842,1.05670611,103380.0,103370.0,0.0014]
[1750444615449,1.05670611,103380.0,103370.0,0.1948663]
[1750444616656,1.05670611,103380.0,103370.0,0.0014]
[1750444617951,1.05670611,103380.0,103370.0,0.1948663]
[1750444618953,1.05670611,103380.0,103370.0,0.0014]
[1750444619256,1.05670611,103380.0,103370.0,0.1948663]
[1750444619958,1.05670611,103380.0,103370.0,0.0014]
[1750444621062,1.09670611,103380.0,103370.0,0.0014]
[1750444622556,0.6174476,103380.0,103370.0,0.63412471]
[1750444622763,0.6174476,103380.0,103370.0,0.1948662]
[1750444623258,0.6174476,103380.0,103370.0,0.2279662]
[1750444623666,0.67542787,103380.0,103370.0,0.2279662]
[1750444623860,0.61422777,103380.0,103370.0,0.68503416]
[1750444624058,0.5562475,103380.0,103370.0,0.71703416]
[1750444624561,0.002,103380.0,103370.0,1.07783416]
[1750444624864,1.24539649,103390.0,103380.0,0.1934475]
[1750444625065,1.28539649,103390.0,103380.0,0.2891475]
[1750444626067,1.28739649,103390.0,103380.0,0.2891475]
[1750444626454,1.29139649,103390.0,103380.0,0.2891475]
[1750444626659,1.23305622,103390.0,103380.0,0.0957]
[1750444626860,1.67231473,103390.0,103380.0,0.0957]
[1750444627159,1.76109534,103390.0,103380.0,0.2891475]
[1750444627562,1.70311473,103390.0,103380.0,0.2891475]
[1750444627761,1.70311473,103390.0,103380.0,0.0957]
[1750444628562,1.26385622,103390.0,103380.0,0.0957]
[1750444629770,1.70311473,103390.0,103380.0,0.0957]
[1750444630170,1.78032235,103390.0,103380.0,0.0957]
[1750444630562,1.12732235,103390.0,103380.0,0.0957]
[1750444630874,1.77932235,103390.0,103380.0,0.0957]
[1750444631369,1.77932235,103390.0,103380.0,0.2891475]
[1750444631558,0.18560762,103390.0,103380.0,0.6499475]
[1750444631760,0.1994288,103390.0,103380.0,1.08920601]
[1750444633671,0.1994288,103390.0,103380.0,0.6499475]
[1750444633972,0.1994288,103390.0,103380.0,0.0957]
[1750444634167,0.63868731,103390.0,103380.0,0.0957]
[1750444634371,0.2303288,103390.0,103380.0,0.2891475]
[1750444634570,0.2303288,103390.0,103380.0,0.0961]
[1750444634571,0.66958731,103390.0,103380.0,0.0961]
[1750444634762,0.66958731,103390.0,103380.0,0.0637]
[1750444634966,0.2609288,103390.0,103380.0,0.0641]
[1750444635166,0.70018731,103390.0,103380.0,0.0641]
[1750444635568,0.2609288,103390.0,103380.0,0.0641]
[1750444636280,0.66958731,103390.0,103380.0,0.0641]
[1750444636475,0.66958731,103390.0,103380.0,0.0004]
[1750444636476,1.06098731,103390.0,103380.0,0.0004]
[1750444636781,0.1934475,103380.0,103370.0,0.15628]
[1750444636977,1.31206601,103380.0,103370.0,0.15708]
[1750444637181,1.34326601,103380.0,103370.0,0.15628]
[1750444637573,1.34326601,103380.0,103370.0,0.15668]
[1750444637975,1.34526601,103380.0,103370.0,0.15668]
[1750444640274,1.40326869,103380.0,103370.0,0.15668]
[1750444641069,0.96401018,103380.0,103370.0,0.15668]
[1750444641274,1.40326869,103380.0,103370.0,0.15668]
[1750444642177,1.51150372,103380.0,103370.0,0.0004]
[1750444644585,0.25345018,103380.0,103370.0,0.66432471]
[1750444644783,0.89925018,103380.0,103370.0,1.05802471]
[1750444646085,0.25345018,103380.0,103370.0,1.05802471]
[1750444646287,0.89901018,103380.0,103370.0,1.05802471]
[1750444647186,0.89901018,103380.0,103370.0,0.6187662]
[1750444647486,0.89901018,103380.0,103370.0,0.4253]
[1750444648082,0.89869018,103380.0,103370.0,0.4253]
[1750444648488,0.89869018,103380.0,103370.0,0.6187662]
[1750444649488,1.33794869,103380.0,103370.0,0.4253]
[1750444649688,1.40084869,103380.0,103370.0,0.3924]
[1750444650089,1.41084869,103380.0,103370.0,0.3612]
[1750444650388,0.1934662,103370.0,103360.0,0.857181]
[1750444650776,0.1934662,103370.0,103360.0,0.8088107]
[1750444652492,0.1934662,103370.0,103360.0,1.24806921]
[1750444652987,0.1934662,103370.0,103360.0,0.8088107]
[1750444653186,0.1934662,103370.0,103360.0,1.24806921]
[1750444653581,0.25146358,103380.0,103370.0,0.1934662]
[1750444653582,1.04323848,103380.0,103370.0,0.1934662]
[1750444653891,1.04323848,103380.0,103370.0,1.05692471]
[1750444654079,1.04323848,103380.0,103370.0,0.6176662]
[1750444654284,1.04323848,103380.0,103370.0,1.05692471]
[1750444655092,1.04523848,103380.0,103370.0,1.05692471]
[1750444655988,1.04523848,103380.0,103370.0,0.6176662]
[1750444656196,1.04523848,103380.0,103370.0,1.05692471]
[1750444656686,1.04523848,103380.0,103370.0,1.00692471]
[1750444656886,1.04523848,103380.0,103370.0,0.4242]
[1750444657087,1.07573848,103380.0,103370.0,0.4242]
[1750444658187,1.51499699,103380.0,103370.0,0.4242]
[1750444658494,0.1934662,103370.0,103360.0,0.5864839]
[1750444658694,0.1934662,103370.0,103360.0,0.6509839]
[1750444658894,0.1934662,103370.0,103360.0,1.09024241]
[1750444659288,0.1934662,103370.0,103360.0,0.53595851]
[1750444659491,0.1934849,103360.0,103350.0,0.3616]
[1750444659693,0.1935036,103350.0,103340.0,0.06226763]
[1750444659990,0.78808094,103350.0,103340.0,0.00096763]
[1750444660383,0.34882243,103350.0,103340.0,0.00096763]
[1750444660694,0.78808094,103350.0,103340.0,0.00096763]
[1750444660895,0.34882243,103350.0,103340.0,0.00136763]
[1750444661092,0.34882243,103350.0,103340.0,0.03246763]
[1750444661785,0.34982243,103350.0,103340.0,0.03246763]
[1750444662393,0.2918036,103350.0,103340.0,0.03246763]
[1750444662591,0.2272036,103350.0,103340.0,0.22598993]
[1750444662794,0.2272036,103350.0,103340.0,0.25638993]
[1750444662990,0.30441756,103350.0,103340.0,0.25638993]
[1750444664091,0.30441756,103350.0,103340.0,0.61718993]
[1750444664298,0.07821396,103350.0,103340.0,1.11643345]
[1750444664594,0.27171756,103350.0,103340.0,1.11643345]
[1750444665391,0.27271756,103350.0,103340.0,0.61718993]
[1750444669206,0.27271756,103350.0,103340.0,0.61719003]
[1750444670796,0.27271756,103350.0,103340.0,0.55569003]
[1750444671000,0.36561756,103350.0,103340.0,0.36216763]
[1750444671190,0.36561756,103350.0,103340.0,0.00136763]
[1750444671392,0.36561756,103350.0,103340.0,0.55569003]
[1750444671804,0.36561756,103350.0,103340.0,0.39416763]
[1750444672802,0.36561756,103350.0,103340.0,0.58769003]
[1750444673003,0.36561756,103350.0,103340.0,0.39416763]
[1750444673303,0.36561756,103350.0,103340.0,0.03336763]
[1750444673800,0.36561756,103350.0,103340.0,0.22689003]
[1750444673998,0.36561756,103350.0,103340.0,0.03336763]
[1750444674199,0.86486108,103350.0,103340.0,0.00096763]
[1750444674506,1.22566108,103350.0,103340.0,0.00136763]
[1750444674709,1.22566108,103350.0,103340.0,0.00096763]
[1750444675006,1.22566108,103350.0,103340.0,0.00136763]
[1750444675708,1.23566108,103350.0,103340.0,0.00136763]
[1750444676001,0.94157756,103350.0,103340.0,0.36216763]
[1750444676201,0.30281756,103350.0,103340.0,0.42406763]
[1750444676402,0.30281756,103350.0,103340.0,0.06326763]
[1750444676999,0.33541756,103350.0,103340.0,0.00136763]
[1750444677206,0.83466108,103350.0,103340.0,0.00136763]
[1750444677409,1.47342108,103350.0,103340.0,0.00136763]
[1750444677607,1.83422108,103350.0,103340.0,0.00136763]
[1750444677998,0.1935223,103340.0,103330.0,0.0008]
[1750444678301,0.1935598,103320.0,103310.0,0.00136791]
[1750444678503,1.69320332,103320.0,103310.0,0.00216791]
[1750444678704,1.78910332,103320.0,103310.0,0.00096791]
[1750444678903,1.59554352,103320.0,103310.0,0.00136791]
[1750444679206,1.78910332,103320.0,103310.0,0.00096791]
[1750444679404,1.78910332,103320.0,103310.0,0.00136791]
[1750444680105,1.89778525,103320.0,103310.0,0.00136791]
[1750444680299,2.32562313,103320.0,103310.0,0.00096791]
[1750444680508,2.32562313,103320.0,103310.0,0.00336791]
[1750444680705,2.32562313,103320.0,103280.0,0.15776819]
[1750444680706,0.0483961,103310.0,103280.0,0.15776819]
[1750444680903,0.69285952,103290.0,103280.0,0.00096819]
[1750444681099,0.601509,103300.0,103280.0,0.19460299]
[1750444681313,0.252013,103300.0,103290.0,0.554416]
[1750444681517,0.252013,103300.0,103290.0,0.787216]
[1750444681707,0.252013,103300.0,103290.0,0.817816]
[1750444682312,0.9935653,103310.0,103300.0,0.1935973]
[1750444682615,0.77329388,103320.0,103310.0,0.1935785]
[1750444682814,0.300356,103320.0,103310.0,0.2563785]
[1750444683320,0.1935785,103310.0,103300.0,0.72886736]
[1750444683519,0.1935785,103310.0,103300.0,0.79196736]
[1750444684221,1.06952322,103320.0,103310.0,0.1935785]
[1750444684222,0.85390072,103320.0,103310.0,0.1935785]
[1750444684419,0.2357597,103320.0,103310.0,0.2566785]
[1750444684619,0.1935597,103320.0,103310.0,0.6174785]
[1750444685511,0.1945597,103320.0,103310.0,0.6174785]
[1750444685915,0.1965597,103320.0,103310.0,0.6174785]
[1750444686214,0.1965596,103320.0,103310.0,0.6174785]
[1750444687617,0.1985596,103320.0,103310.0,0.6174785]
[1750444688622,0.69780312,103320.0,103310.0,0.3608]
[1750444688922,0.1935784,103310.0,103300.0,1.82266588]
[1750444689121,0.1935784,103310.0,103300.0,1.91550588]
[1750444689315,0.1935784,103310.0,103300.0,1.27734588]
[1750444689928,0.1935784,103310.0,103300.0,0.72970346]
[1750444690316,0.1935784,103310.0,103300.0,0.37927166]
[1750444690623,0.69382192,103310.0,103300.0,0.3616]
[1750444690811,1.39528192,103310.0,103300.0,0.0008]
[1750444691126,1.75608192,103310.0,103300.0,0.0008]
[1750444691318,0.1935971,103300.0,103290.0,0.18744]
[1750444691519,0.1935971,103300.0,103290.0,0.18824]
[1750444691818,0.1935971,103300.0,103290.0,0.0314]
[1750444692018,0.2560971,103300.0,103290.0,0.0314]
[1750444692622,0.2560971,103300.0,103290.0,0.0324]
[1750444693012,0.75534062,103300.0,103290.0,0.0018]
[1750444693220,0.75534062,103300.0,103290.0,0.001]
[1750444693524,0.75534062,103300.0,103290.0,0.0014]
[1750444694028,0.75534062,103300.0,103290.0,0.0024]
[1750444694818,0.75534062,103300.0,103290.0,0.0014]
[1750444695118,1.11714062,103300.0,103290.0,0.0004]
[1750444695319,1.12672735,103300.0,103290.0,0.0004]
[1750444695524,0.76592735,103300.0,103290.0,0.0004]
[1750444695917,1.12672735,103300.0,103290.0,0.0004]
[1750444696817,0.1936158,103290.0,103280.0,0.51860819]
[1750444697019,0.8628158,103290.0,103280.0,0.51940819]
[1750444697424,0.8628158,103290.0,103280.0,0.71304279]
[1750444697628,0.8628158,103290.0,103280.0,0.35224279]
[1750444697828,0.8628158,103290.0,103280.0,0.71304279]
[1750444698122,0.8628158,103290.0,103280.0,0.71404279]
[1750444698324,0.8628158,103290.0,103280.0,0.52140819]
[1750444698829,0.8628158,103290.0,103280.0,0.71504269]
[1750444699325,0.8628158,103290.0,103280.0,0.52140819]
[1750444700023,0.93853131,103290.0,103280.0,0.52140819]
[1750444700816,1.33837067,103290.0,103280.0,0.55400819]
[1750444701019,1.33837067,103290.0,103280.0,0.5714148]
[1750444702113,1.33837067,103290.0,103280.0,0.6026148]
[1750444702627,1.33837067,103290.0,103280.0,0.7962493]
[1750444703528,1.33837067,103290.0,103280.0,0.6026148]
[1750444704228,1.33837067,103290.0,103280.0,0.7962493]
[1750444704425,0.93853131,103290.0,103280.0,0.7962493]
[1750444704826,0.93853131,103290.0,103280.0,0.6026148]
[1750444705729,1.33837067,103290.0,103280.0,0.6026148]
[1750444705930,1.33837067,103290.0,103280.0,0.4457748]
[1750444707322,1.69917067,103290.0,103280.0,0.03496819]
[1750444707626,1.73217067,103290.0,103280.0,0.00376819]
[1750444708225,1.73217067,103290.0,103280.0,0.00296819]
[1750444708434,1.73217067,103290.0,103280.0,0.00336819]
[1750444708730,1.76237067,103290.0,103280.0,0.00296819]
[1750444708931,1.76237067,103290.0,103280.0,0.00336819]
[1750444712733,1.40157067,103290.0,103280.0,0.00336819]
[1750444713028,1.40157067,103290.0,103280.0,0.36416819]
[1750444713431,1.00173131,103290.0,103280.0,0.36416819]
[1750444713630,1.33821067,103290.0,103280.0,0.39716819]
[1750444713831,0.26933131,103290.0,103280.0,1.02194245]
[1750444714634,0.90817131,103290.0,103280.0,1.02194245]
[1750444715127,1.30801067,103290.0,103280.0,0.42846819]
[1750444715527,1.34091067,103290.0,103280.0,0.42846819]
[1750444719428,1.34091067,103290.0,103280.0,0.39716819]
[1750444719736,1.34091067,103290.0,103280.0,0.39676819]
[1750444720035,1.34091067,103290.0,103280.0,0.39716819]
[1750444720231,1.39874855,103290.0,103280.0,0.39716819]
[1750444720833,1.39874855,103290.0,103280.0,0.42976819]
[1750444725031,1.34091067,103290.0,103280.0,0.42976819]
[1750444725241,1.39898976,103290.0,103280.0,0.42976819]
[1750444726241,1.34091067,103290.0,103280.0,0.42976819]
[1750444727140,1.39898917,103290.0,103280.0,0.42976819]
[1750444728044,0.99914981,103290.0,103280.0,0.42976819]
[1750444728239,0.99914981,103290.0,103280.0,0.06896819]
[1750444730052,1.39898917,103290.0,103280.0,0.06896819]
[1750444732357,0.99914981,103290.0,103280.0,0.42976819]
[1750444733059,1.39898917,103290.0,103280.0,0.06896819]
[1750444733260,1.43008917,103290.0,103280.0,0.06896819]
[1750444734461,0.97217131,103290.0,103280.0,0.06896819]
[1750444734653,1.37201067,103290.0,103280.0,0.06896819]
[1750444735352,1.43009656,103290.0,103280.0,0.06896819]
[1750444736954,2.19073592,103290.0,103280.0,0.00336819]
[1750444737265,2.23934064,103290.0,103280.0,0.00336819]
[1750444737463,2.3167885,103290.0,103280.0,0.00296819]
[1750444737760,2.23934064,103290.0,103280.0,0.00296819]
[1750444738060,2.3167885,103290.0,103280.0,0.00296819]
[1750444738261,2.3207885,103290.0,103280.0,0.00236819]
[1750444738469,2.3207885,103290.0,103280.0,0.00136819]
[1750444739165,2.29950638,103290.0,103280.0,0.00136819]
[1750444740263,2.30050638,103290.0,103280.0,0.00136819]
[1750444740865,2.31050638,103290.0,103280.0,0.00136819]
[1750444741666,2.23305852,103290.0,103280.0,0.00136819]
[1750444743162,1.82321916,103290.0,103280.0,0.00136819]
[1750444744358,0.94896386,103290.0,103280.0,0.95564175]
[1750444744564,0.94896386,103290.0,103280.0,1.05084175]
[1750444745068,0.94896386,103290.0,103280.0,0.65100239]
[1750444745266,0.94896386,103290.0,103280.0,0.09656819]
[1750444745566,1.34880322,103290.0,103280.0,0.45736819]
[1750444745766,0.94896386,103290.0,103280.0,0.45736819]
[1750444746160,0.94896386,103290.0,103280.0,0.65100239]
[1750444746567,0.94896386,103290.0,103280.0,0.45736819]
[1750444747565,0.94896386,103290.0,103280.0,0.65100239]
[1750444748060,0.05943339,103290.0,103280.0,1.05084175]
[1750444748263,0.1986154,103290.0,103280.0,1.21632175]
[1750444748767,0.005,103290.0,103280.0,1.43512437]
[1750444749562,0.2420135,103300.0,103290.0,0.1936154]
[1750444749766,0.1935967,103300.0,103290.0,1.56209652]
[1750444749967,0.1935967,103300.0,103290.0,1.35588116]
[1750444750267,0.1935967,103300.0,103290.0,1.99356116]
[1750444750463,0.1935967,103300.0,103290.0,0.6172154]
[1750444750654,0.59343606,103300.0,103290.0,0.57908]
[1750444750861,0.59343606,103300.0,103290.0,0.0319]
[1750444751055,0.68773606,103300.0,103290.0,0.0323]
[1750444751264,1.32533606,103300.0,103290.0,0.0319]
[1750444751467,1.32533606,103300.0,103290.0,0.0323]
[1750444751666,1.32733606,103300.0,103290.0,0.0323]
[1750444752269,1.32733606,103300.0,103290.0,0.3931]
[1750444753170,0.68973606,103300.0,103290.0,0.3931]
[1750444753968,0.68973606,103300.0,103290.0,0.0323]
[1750444755665,0.74777073,103300.0,103290.0,0.0323]
[1750444756170,0.74777073,103300.0,103290.0,0.0004]
[1750444756672,1.10857073,103300.0,103290.0,0.0004]
[1750444756973,0.70873137,103300.0,103290.0,0.0004]
[1750444757274,1.10857073,103300.0,103290.0,0.0004]
[1750444757875,1.21128331,103300.0,103290.0,0.0004]
[1750444758174,0.85048331,103300.0,103290.0,0.0004]
[1750444758372,0.74777073,103300.0,103290.0,0.0628]
[1750444758576,1.38509073,103300.0,103290.0,0.0628]
[1750444758875,0.92405137,103300.0,103290.0,0.0624]
[1750444759173,0.92405137,103300.0,103290.0,0.0953]
[1750444759376,1.32389073,103300.0,103290.0,0.0953]
[1750444759765,0.92405137,103300.0,103290.0,0.0953]